bitfinex/quotes_SOLUSD_20250206
["timestamp","ask_amount","ask_price","bid_price","bid_amount"]
[1738881488177,0.03,191.97,191.96,14.94579159]
[1738881488375,0.03,191.97,191.96,33.69253012]
[1738881488586,0.03,191.97,191.96,34.69253012]
[1738881488895,0.03,192.07,191.99,20.0]
[1738881489086,0.03,192.07,192.04,14.69481159]
[1738881491077,20.0,192.05,192.0,23.45153858]
[1738881492480,0.5207,192.04,192.0,23.45153858]
[1738881492997,20.5207,192.05,192.0,23.45153858]
[1738881494586,20.0,192.03,191.98,23.45153858]
[1738881494804,20.0,192.01,191.96,23.45153858]
[1738881496807,0.5208,192.0,191.96,23.45153858]
[1738881502720,0.5208,192.0,191.96,23.51453858]
[1738881503103,20.03,192.01,191.96,23.51453858]
[1738881503522,20.5508,192.01,191.96,23.51453858]
[1738881510725,20.5508,192.01,191.96,14.7294655]
[1738881515216,20.5508,192.01,191.96,0.063]
[1738881516222,21.8528,192.01,191.96,0.063]
[1738881516435,0.5208,191.98,191.96,0.063]
[1738881516606,15.1872655,191.98,191.96,0.063]
[1738881518927,15.1872655,191.98,191.96,0.0001]
[1738881519121,16.16426834,191.98,191.96,0.0001]
[1738881519424,1.6604,191.97,191.96,0.0001]
[1738881520131,16.96961853,191.97,191.96,0.0001]
[1738881520310,23.97651853,191.97,191.96,0.0001]
[1738881521433,22.72553853,191.97,191.96,0.0001]
[1738881522226,21.72553853,191.97,191.96,0.0001]
[1738881522530,22.72553853,191.97,191.96,0.0001]
[1738881525635,21.72553853,191.97,191.96,0.0001]
[1738881525834,22.72553853,191.97,191.96,0.0001]
[1738881526636,21.72553853,191.97,191.96,0.0001]
[1738881527141,22.72553853,191.97,191.96,0.0001]
[1738881531038,23.97651853,191.97,191.96,0.0001]
[1738881531444,20.12549,191.93,191.81,14.6664655]
[1738881531627,20.0,191.86,191.81,14.6664655]
[1738881532421,20.0,191.86,191.79,14.6664655]
[1738881532640,20.0,191.85,191.79,9.40275314]
[1738881533146,0.5212,191.84,191.79,9.40275314]
[1738881533637,0.5212,191.85,191.81,9.40275314]
[1738881534622,20.0,191.87,191.81,14.61615314]
[1738881534623,20.5211,191.87,191.81,14.61615314]
[1738881534965,20.0,191.87,191.83,9.40275314]
[1738881535321,0.5211,191.89,191.83,9.40275314]
[1738881535846,20.5211,191.89,191.83,9.40275314]
[1738881537039,20.0,191.87,191.83,9.40275314]
[1738881538046,20.5211,191.87,191.83,9.40275314]
[1738881538246,0.5211,191.9,191.83,9.40275314]
[1738881539271,1.8237,191.91,191.83,9.40275314]
[1738881541737,20.0,191.87,191.81,9.40275314]
[1738881541951,20.0,191.85,191.81,9.40275314]
[1738881542151,20.0,191.84,191.79,9.40275314]
[1738881543558,0.5212,191.83,191.79,9.40275314]
[1738881550152,0.5212,191.83,191.79,9.46575314]
[1738881552363,20.5212,191.83,191.79,9.46575314]
[1738881553163,20.5212,191.83,191.79,0.063]
[1738881553366,20.0,191.81,191.79,0.063]
[1738881553549,20.0,191.8,191.79,0.063]
[1738881553749,30.52824314,191.8,191.76,0.063]
[1738881553952,9.40275314,191.78,191.76,0.063]
[1738881555144,0.5214,191.77,191.76,0.063]
[1738881555349,1.49943188,191.77,191.76,0.063]
[1738881555767,0.5214,191.77,191.76,0.063]
[1738881557988,1.5214,191.77,191.76,0.063]
[1738881558546,0.5214,191.77,191.76,0.063]
[1738881559775,8.7207,191.77,191.76,0.063]
[1738881559957,20.5214,191.77,191.76,0.063]
[1738881560144,0.5214,191.77,191.76,0.063]
[1738881560348,82.6214,191.79,191.76,0.063]
[1738881560770,20.0,191.77,191.76,0.063]
[1738881561582,82.1,191.79,191.76,0.063]
[1738881561889,82.1,191.79,191.77,9.40275314]
[1738881562179,82.6213,191.83,191.77,9.40275314]
[1738881562483,82.1,191.83,191.79,9.40275314]
[1738881563197,0.5212,191.84,191.79,9.40275314]
[1738881563571,20.0,191.84,191.79,9.40275314]
[1738881563954,20.0,191.87,191.81,9.40275314]
[1738881564277,0.5211,191.89,191.83,9.40275314]
[1738881564485,7.8021,191.91,191.83,9.40275314]
[1738881564698,0.5211,191.91,191.85,9.40275314]
[1738881564865,20.0,191.89,191.85,9.40275314]
[1738881565394,82.621,191.92,191.87,9.40275314]
[1738881565555,20.0,191.9,191.87,9.40275314]
[1738881565753,0.521,191.92,191.87,9.40275314]
[1738881566271,13.19188174,191.93,191.87,9.40275314]
[1738881566463,13.19188174,191.93,191.89,9.40275314]
[1738881566651,13.71288174,191.93,191.89,9.40275314]
[1738881566857,13.71288174,191.93,191.87,9.40275314]
[1738881568803,20.0,191.89,191.83,9.40275314]
[1738881569088,20.0,191.87,191.81,9.40275314]
[1738881569257,20.0,191.85,191.79,9.40275314]
[1738881570199,1.8243,191.84,191.77,9.40275314]
[1738881570367,1.8243,191.84,191.76,0.063]
[1738881570368,20.0,191.81,191.76,0.063]
[1738881570570,20.0,191.79,191.76,0.063]
[1738881572196,20.5214,191.77,191.76,0.063]
[1738881574899,0.5214,191.77,191.76,0.063]
[1738881576291,20.03,191.79,191.76,0.063]
[1738881576595,20.0,191.77,191.76,0.063]
[1738881578285,20.5214,191.77,191.76,0.063]
[1738881582881,0.03,191.79,191.76,0.063]
[1738881583181,0.5514,191.79,191.76,0.063]
[1738881583496,20.0,191.77,191.76,0.063]
[1738881584590,20.5214,191.77,191.76,0.063]
[1738881586695,0.5514,191.79,191.76,0.063]
[1738881591301,20.0,191.78,191.77,14.70342964]
[1738881592796,0.03,191.79,191.77,14.70342964]
[1738881594678,0.03,191.79,191.78,9.40282683]
[1738881597590,0.03,191.79,191.78,14.61712683]
[1738881597980,0.03,191.79,191.78,14.86810683]
[1738881598492,0.03,191.79,191.78,28.40544536]
[1738881598800,0.03,191.79,191.78,66.01675268]
[1738881600200,0.03,191.79,191.78,14.61712683]
[1738881600579,0.03,191.79,191.78,9.40282683]
[1738881601301,0.03,191.79,191.76,9.46582683]
[1738881602694,0.03,191.79,191.76,0.063]
[1738881606595,20.0,191.78,191.76,0.063]
[1738881607309,0.03,191.79,191.76,0.063]
[1738881607512,20.0,191.78,191.76,0.063]
[1738881607889,20.5214,191.78,191.76,0.063]
[1738881614514,0.03,191.79,191.76,0.063]
[1738881614515,102.6214,191.77,191.76,0.063]
[1738881615206,20.5214,191.77,191.76,0.063]
[1738881622341,0.5214,191.77,191.76,0.063]
[1738881622501,20.5214,191.78,191.76,0.063]
[1738881624708,20.5214,191.77,191.76,0.063]
[1738881625431,28.39009,191.77,191.76,0.063]
[1738881625611,51.21000464,191.77,191.76,0.063]
[1738881632636,52.4390831,191.77,191.76,0.063]
[1738881633125,52.1881031,191.77,191.76,0.063]
[1738881634035,38.65076457,191.77,191.76,0.063]
[1738881634334,20.5214,191.77,191.76,0.063]
[1738881636514,0.5214,191.77,191.76,0.063]
[1738881636918,20.0,191.78,191.76,0.063]
[1738881637516,0.03,191.79,191.76,0.063]
[1738881642424,20.03,191.79,191.76,0.063]
[1738881645545,0.03,191.79,191.77,9.40806611]
[1738881647751,0.03,191.79,191.78,5.2143]
[1738881665367,0.03,191.79,191.78,14.62236611]
[1738881670038,0.03,191.79,191.78,9.40806611]
[1738881670865,0.03,191.79,191.77,14.68556611]
[1738881672735,0.03,191.79,191.78,9.40806611]
[1738881673341,0.03,191.79,191.78,23.19638464]
[1738881673645,0.521,191.91,191.82,20.0]
[1738881673848,82.1,191.94,191.87,9.40806611]
[1738881673849,92.02906611,191.94,191.87,9.40806611]
[1738881674536,0.521,191.94,191.87,9.40806611]
[1738881674965,0.521,191.94,191.87,14.61966611]
[1738881675348,0.521,191.94,191.84,9.40806611]
[1738881675349,9.40806611,191.92,191.84,9.40806611]
[1738881675546,9.40806611,191.9,191.81,14.62146611]
[1738881675739,9.40806611,191.86,191.79,9.40806611]
[1738881675945,9.40806611,191.83,191.77,0.063]
[1738881676863,9.92936611,191.83,191.77,0.063]
[1738881677059,9.40806611,191.81,191.77,0.063]
[1738881677268,9.40806611,191.79,191.77,0.063]
[1738881677936,6.42099,191.78,191.77,0.063]
[1738881678159,6.42099,191.78,191.64,0.063]
[1738881678160,20.0,191.75,191.64,0.063]
[1738881678464,0.97827485,191.74,191.64,0.063]
[1738881678844,0.5215,191.73,191.64,0.063]
[1738881679059,9.40806611,191.71,191.64,0.063]
[1738881680560,9.40806611,191.71,191.65,9.40806611]
[1738881681261,9.92956611,191.73,191.65,9.40806611]
[1738881681943,9.92956611,191.73,191.65,14.62586611]
[1738881686369,9.92956611,191.75,191.67,9.40806611]
[1738881686667,8.0646334,191.8,191.71,9.40806611]
[1738881686873,8.0646334,191.8,191.74,9.40806611]
[1738881687866,20.0,191.79,191.74,9.40806611]
[1738881688046,20.0,191.79,191.75,5.2151]
[1738881688248,20.0,191.8,191.75,5.2151]
[1738881688648,15.72566611,191.83,191.75,5.2151]
[1738881688864,97.82566611,191.83,191.75,5.2151]
[1738881689768,20.0,191.8,191.75,5.2151]
[1738881690274,88.4176,191.83,191.76,9.40806611]
[1738881690946,6.3176,191.83,191.76,9.40806611]
[1738881691172,9.40806611,191.85,191.76,9.40806611]
[1738881691472,10.1185334,191.86,191.78,9.40806611]
[1738881691671,20.0,191.83,191.78,9.40806611]
[1738881692176,8.0646334,191.86,191.8,14.62166611]
[1738881692674,20.0,191.84,191.8,14.62166611]
[1738881692864,20.0,191.84,191.8,9.40806611]
[1738881693068,20.0,191.84,191.79,5.2139]
[1738881694574,0.03,191.86,191.8,9.40806611]
[1738881695471,0.03,191.86,191.82,9.40806611]
[1738881696373,0.03,191.86,191.84,9.40806611]
[1738881697357,0.03,191.86,191.85,0.12549]
[1738881697760,0.03,191.86,191.84,9.40806611]
[1738881698161,0.03,191.86,191.85,5.2124]
[1738881698361,0.03,191.86,191.85,5.33789]
[1738881706989,0.03,191.86,191.85,5.2124]
[1738881722506,0.03,191.86,191.85,5.33789]
[1738881723901,0.03,191.96,191.94,9.40806611]
[1738881724483,0.03,191.96,191.94,14.61776611]
[1738881727890,0.03,191.96,191.95,0.12549]
[1738881728094,0.03,191.96,191.95,13.78831853]
[1738881728608,0.03,191.96,191.95,18.99791853]
[1738881731093,0.03,191.96,191.95,5.2096]
[1738881739006,0.03,191.96,191.92,13.15129]
[1738881739007,0.03,191.96,191.92,14.61856611]
[1738881740209,0.03,191.96,191.88,9.40806611]
[1738881740210,9.43806611,191.96,191.88,9.40806611]
[1738881740903,29.40806611,191.94,191.86,9.47106611]
[1738881741124,9.40806611,191.92,191.86,0.063]
[1738881742120,20.0,191.89,191.86,0.063]
[1738881742424,8.1966,191.89,191.86,0.063]
[1738881746824,8.7177,191.89,191.86,0.063]
[1738881748127,20.0,191.87,191.86,0.063]
[1738881748432,91.50806611,191.88,191.86,0.063]
[1738881749631,0.5211,191.87,191.86,0.063]
[1738881750247,0.89757,191.87,191.86,0.063]
[1738881750436,9.40806611,191.83,191.76,9.47106611]
[1738881750622,20.0,191.8,191.76,0.063]
[1738881752427,0.5213,191.82,191.76,9.47106611]
[1738881753634,20.0,191.81,191.76,9.47106611]
[1738881757822,0.5213,191.83,191.78,9.40806611]
[1738881765943,0.5213,191.83,191.76,9.47106611]
[1738881768027,0.5213,191.83,191.76,14.68586611]
[1738881776147,9.92936611,191.83,191.76,14.68586611]
[1738881789271,82.1,191.84,191.76,14.68586611]
[1738881789587,82.1,191.84,191.78,9.40806611]
[1738881791185,82.1,191.84,191.79,5.214]
[1738881796377,82.1,191.84,191.76,9.47106611]
[1738881796569,82.1,191.84,191.76,14.68586611]
[1738881798484,90.1646334,191.84,191.76,14.68586611]
[1738881799379,90.6858334,191.84,191.76,14.68586611]
[1738881800585,8.0646334,191.83,191.76,14.68586611]
[1738881802065,82.6212,191.84,191.76,14.68586611]
[1738881802066,8.0646334,191.82,191.76,14.68586611]
[1738881808795,8.0646334,191.81,191.76,14.68586611]
[1738881811890,8.0646334,191.81,191.78,9.40806611]
[1738881812079,8.0646334,191.81,191.78,14.62226611]
[1738881813493,8.0646334,191.82,191.78,14.62226611]
[1738881814489,8.0646334,191.81,191.78,14.62226611]
[1738881816602,8.0646334,191.82,191.78,14.62226611]
[1738881822412,8.0646334,191.82,191.76,9.47106611]
[1738881822584,8.5859334,191.82,191.76,0.063]
[1738881822896,9.40806611,191.81,191.76,0.063]
[1738881823314,8.0646334,191.8,191.76,0.063]
[1738881825303,8.5859334,191.8,191.76,0.063]
[1738881826407,8.5860334,191.79,191.76,0.063]
[1738881827990,8.0646334,191.77,191.76,0.063]
[1738881829590,8.0646334,191.78,191.76,0.063]
[1738881833997,0.5214,191.78,191.76,0.063]
[1738881834207,20.0,191.77,191.76,0.063]
[1738881835601,28.0646334,191.77,191.76,0.063]
[1738881835911,28.5860334,191.77,191.72,9.40806611]
[1738881836412,20.5214,191.77,191.72,9.40806611]
[1738881841016,20.0,191.74,191.68,9.40806611]
[1738881841326,92.02946611,191.77,191.68,9.40806611]
[1738881841494,20.0,191.74,191.68,9.40806611]
[1738881843916,20.5215,191.74,191.68,9.40806611]
[1738881845218,20.5215,191.74,191.68,9.47106611]
[1738881845518,91.50806611,191.77,191.72,9.40806611]
[1738881845519,0.5215,191.76,191.72,9.40806611]
[1738881845724,82.1,191.77,191.72,9.40806611]
[1738881846701,82.6214,191.77,191.72,9.40806611]
[1738881857019,82.6514,191.77,191.72,9.40806611]
[1738881862621,82.6514,191.77,191.71,5.2161]
[1738881874253,82.6514,191.77,191.7,9.40806611]
[1738881874432,90.7160334,191.77,191.7,14.62446611]
[1738881876652,8.5861334,191.76,191.7,14.62446611]
[1738881878053,8.0646334,191.75,191.7,14.62446611]
[1738881879041,8.5861334,191.75,191.7,9.40806611]
[1738881880155,8.5861334,191.75,191.7,9.47106611]
[1738881885756,8.0646334,191.74,191.7,9.47106611]
[1738881888859,8.5861334,191.75,191.7,9.47106611]
[1738881889554,8.5861334,191.75,191.7,0.063]
[1738881892070,82.1,191.74,191.7,0.063]
[1738881892272,0.5215,191.73,191.7,0.063]
[1738881894748,82.1,191.72,191.7,0.063]
[1738881894954,82.1,191.71,191.7,0.063]
[1738881900562,0.5216,191.71,191.7,0.063]
[1738881902057,1.49995292,191.71,191.7,0.063]
[1738881902265,9.56458632,191.71,191.68,0.063]
[1738881903067,1.49995292,191.71,191.68,0.063]
[1738881903273,0.5216,191.71,191.68,0.063]
[1738881903676,0.5216,191.71,191.7,0.063]
[1738881905850,8.0646334,191.72,191.7,0.063]
[1738881906463,20.0,191.71,191.7,0.063]
[1738881907891,8.0646334,191.74,191.7,0.063]
[1738881908064,90.1646334,191.74,191.7,0.063]
[1738881910770,82.1,191.74,191.7,0.063]
[1738881913481,82.6215,191.74,191.7,0.063]
[1738881916668,82.6515,191.74,191.7,0.063]
[1738881918372,90.7161334,191.74,191.7,0.063]
[1738881918891,82.1,191.73,191.7,0.063]
[1738881919387,82.6215,191.73,191.7,0.063]
[1738881919683,20.0,191.71,191.7,0.063]
[1738881921392,43.59249464,191.71,191.7,0.063]
[1738881922475,59.85588336,191.71,191.7,0.063]
[1738881924181,0.37647,191.69,191.68,0.063]
[1738881924493,24.17497103,191.69,191.68,0.063]
[1738881924873,24.17497103,191.69,191.66,0.063]
[1738881925190,13.41184853,191.67,191.66,0.063]
[1738881925389,14.39046021,191.67,191.66,0.063]
[1738881925583,14.64144021,191.67,191.66,0.063]
[1738881925776,24.17499632,191.67,191.66,0.063]
[1738881926370,24.69669632,191.67,191.66,0.063]
[1738881928996,40.71152389,191.67,191.66,0.063]
[1738881930789,32.68733889,191.67,191.66,0.063]
[1738881934190,20.0,191.64,191.59,0.063]
[1738881934896,20.0,191.65,191.59,0.063]
[1738881935104,38.0566715,191.65,191.59,0.063]
[1738881937894,0.5218,191.64,191.59,0.063]
[1738881939604,82.1,191.63,191.59,0.063]
[1738881939797,82.6218,191.63,191.59,0.063]
[1738881945706,82.1,191.62,191.59,0.063]
[1738881949808,82.6218,191.62,191.59,0.063]
[1738881950996,20.5219,191.6,191.59,0.063]
[1738881951593,0.5219,191.6,191.59,0.063]
[1738881955120,13.93374853,191.6,191.59,0.063]
[1738881957395,20.0,191.58,191.57,0.03198905]
[1738881957616,0.97899661,191.58,191.57,0.03198905]
[1738881958519,1.50089661,191.58,191.57,0.03198905]
[1738881964428,0.97899661,191.58,191.47,2.62016857]
[1738881964720,0.5219,191.58,191.47,2.62016857]
[1738881964902,0.5219,191.58,191.57,0.063]
[1738881966105,82.1,191.59,191.57,0.063]
[1738881966311,82.6219,191.59,191.57,0.063]
[1738881977417,82.6519,191.59,191.57,0.063]
[1738881979629,83.63085053,191.59,191.57,0.063]
[1738881981238,82.1,191.58,191.57,0.063]
[1738881981534,82.6219,191.58,191.57,0.063]
[1738881983734,90.61254257,191.58,191.57,0.063]
[1738881995248,90.61254257,191.58,191.52,14.62926611]
[1738881999331,7.99064257,191.57,191.52,14.62926611]
[1738881999526,8.51264257,191.57,191.52,14.62926611]
[1738882000250,8.51264257,191.57,191.52,14.69226611]
[1738882003353,7.99064257,191.56,191.52,14.69226611]
[1738882005254,7.99064257,191.56,191.55,1.5749]
[1738882005932,7.99064257,191.56,191.55,10.98296611]
[1738882007046,82.1,191.58,191.55,16.20346611]
[1738882007241,82.1,191.58,191.57,9.40806611]
[1738882007444,8.02064257,191.59,191.57,9.40806611]
[1738882008950,0.03,191.59,191.57,9.40806611]
[1738882010054,0.03,191.59,191.56,9.40806611]
[1738882011727,0.03,191.59,191.56,9.47106611]
[1738882012455,0.03,191.59,191.56,0.063]
[1738882014657,0.5519,191.59,191.56,0.063]
[1738882015935,8.54254257,191.59,191.56,0.063]
[1738882020546,7.99064257,191.58,191.56,0.063]
[1738882022759,8.54254257,191.59,191.56,0.063]
[1738882024164,0.03,191.58,191.56,0.063]
[1738882028658,8.02064257,191.58,191.56,0.063]
[1738882030264,0.03,191.58,191.56,0.063]
[1738882032367,8.54254257,191.58,191.56,0.063]
[1738882033369,8.02064257,191.58,191.56,0.063]
[1738882034967,0.03,191.58,191.56,0.063]
[1738882036549,20.0,191.57,191.56,0.063]
[1738882037855,29.93006611,191.57,191.56,0.063]
[1738882038173,43.71838464,191.57,191.56,0.063]
[1738882038468,0.25098,191.56,191.55,0.063]
[1738882038670,1.23022335,191.56,191.55,0.063]
[1738882038861,1.23022335,191.56,191.52,0.063]
[1738882038862,13.41184853,191.55,191.52,0.063]
[1738882039063,91.50806611,191.54,191.52,0.063]
[1738882039454,92.48730494,191.54,191.52,0.063]
[1738882039853,0.5221,191.53,191.52,0.063]
[1738882043072,13.93394853,191.53,191.52,0.063]
[1738882043463,14.91318763,191.53,191.52,0.063]
[1738882045276,22.85828763,191.53,191.52,0.063]
[1738882046054,23.23475763,191.53,191.52,0.063]
[1738882047785,14.78831853,191.52,191.51,0.063]
[1738882047961,13.41184853,191.48,191.46,0.063]
[1738882048275,105.89950884,191.48,191.46,0.063]
[1738882048460,104.91991464,191.48,191.46,0.063]
[1738882049179,0.5222,191.47,191.46,0.063]
[1738882049555,1.50184076,191.47,191.46,0.063]
[1738882051172,15.16466929,191.47,191.46,0.063]
[1738882052874,15.29015929,191.47,191.46,0.063]
[1738882055514,23.02415929,191.47,191.46,0.063]
[1738882058382,24.02415929,191.47,191.46,0.063]
[1738882059471,24.02415929,191.47,191.46,0.0001]
[1738882060173,24.02415929,191.47,191.36,0.063]
[1738882060174,20.0,191.43,191.36,0.063]
[1738882060496,22.81991464,191.42,191.36,0.063]
[1738882061393,0.5224,191.41,191.36,0.063]
[1738882074978,82.6223,191.43,191.36,9.47106611]
[1738882076011,0.5224,191.42,191.36,14.69656611]
[1738882076307,13.93424853,191.42,191.36,14.69656611]
[1738882077784,0.5224,191.42,191.36,14.69656611]
[1738882081421,82.1,191.43,191.36,14.69656611]
[1738882081711,82.6223,191.43,191.36,14.69656611]
[1738882082710,82.1,191.43,191.38,9.40806611]
[1738882085027,82.6224,191.43,191.37,5.2253]
[1738882085810,82.1,191.43,191.37,5.2253]
[1738882088895,82.6223,191.43,191.36,16.25586611]
[1738882091516,82.1,191.43,191.36,16.25586611]
[1738882092114,0.5223,191.45,191.38,9.40806611]
[1738882092691,9.43806611,191.46,191.38,9.40806611]
[1738882092920,9.96036611,191.46,191.39,5.2249]
[1738882094708,0.03,191.46,191.39,5.2249]
[1738882095020,0.5523,191.46,191.39,5.2249]
[1738882102024,8.57425505,191.46,191.39,5.2249]
[1738882106517,8.57425505,191.46,191.4,9.40806611]
[1738882106719,8.57425505,191.46,191.41,5.2243]
[1738882108042,8.57425505,191.46,191.4,9.40806611]
[1738882108043,8.57425505,191.46,191.4,14.63256611]
[1738882111130,0.5523,191.46,191.4,14.63256611]
[1738882115342,8.57425505,191.46,191.4,14.63256611]
[1738882116035,17.98232116,191.46,191.38,9.40806611]
[1738882116210,17.98232116,191.46,191.36,2.9293075]
[1738882116211,13.41184853,191.45,191.36,16.25586611]
[1738882117323,0.5223,191.44,191.36,16.25586611]
[1738882118136,0.5223,191.44,191.39,0.063]
[1738882122536,0.5223,191.45,191.39,0.063]
[1738882123135,13.93414853,191.45,191.39,0.063]
[1738882126450,21.95610358,191.45,191.39,0.063]
[1738882126945,8.54425505,191.45,191.39,0.063]
[1738882131353,21.95610358,191.45,191.39,0.063]
[1738882135638,13.93414853,191.44,191.39,0.063]
[1738882140142,21.95610358,191.44,191.39,0.063]
[1738882161298,23.47830358,191.44,191.39,0.063]
[1738882165286,10.06645505,191.44,191.39,0.063]
[1738882171264,13.93424853,191.43,191.39,0.063]
[1738882172778,8.02195505,191.42,191.39,0.063]
[1738882173760,8.54435505,191.42,191.39,0.063]
[1738882174880,8.02195505,191.42,191.39,0.063]
[1738882175079,21.95620358,191.43,191.39,0.063]
[1738882176385,0.12549,191.42,191.39,0.063]
[1738882177890,13.41184853,191.4,191.39,0.063]
[1738882179885,21.55929358,191.42,191.39,0.063]
[1738882180083,13.41184853,191.4,191.39,0.063]
[1738882180469,13.53733853,191.4,191.39,0.063]
[1738882181569,14.05973853,191.4,191.39,0.063]
[1738882182188,103.07231853,191.4,191.39,0.063]
[1738882182388,33.53733853,191.37,191.36,0.063]
[1738882182590,36.37339058,191.37,191.36,0.063]
[1738882183394,13.41184853,191.31,191.26,9.47106611]
[1738882183590,13.41184853,191.29,191.26,9.47106611]
[1738882183887,13.41184853,191.29,191.26,0.063]
[1738882185571,13.41184853,191.27,191.26,0.063]
[1738882187087,33.41184853,191.27,191.26,0.063]
[1738882188888,33.93464853,191.27,191.26,0.063]
[1738882192096,34.06013853,191.27,191.26,0.063]
[1738882193103,10.92826611,191.31,191.26,0.063]
[1738882193104,20.5228,191.28,191.26,0.063]
[1738882193590,0.5227,191.3,191.26,0.063]
[1738882194097,13.93454853,191.3,191.26,0.063]
[1738882194795,13.41184853,191.29,191.26,0.063]
[1738882196200,33.93454853,191.29,191.26,0.063]
[1738882198375,0.5226,191.32,191.26,9.47106611]
[1738882199185,13.93444853,191.33,191.26,9.47106611]
[1738882199896,20.0,191.32,191.26,9.47106611]
[1738882200303,20.0,191.32,191.27,5.2282]
[1738882202000,20.5226,191.32,191.26,9.47106611]
[1738882204404,13.41184853,191.31,191.26,9.47106611]
[1738882204605,13.93454853,191.31,191.26,9.47106611]
[1738882215507,13.93454853,191.31,191.26,0.063]
[1738882220626,20.0,191.28,191.26,0.063]
[1738882221117,13.41184853,191.27,191.26,0.063]
[1738882222801,13.93464853,191.27,191.26,0.063]
[1738882223815,13.93464853,191.27,191.22,9.40806611]
[1738882224699,20.0,191.24,191.2,9.40806611]
[1738882224893,13.41184853,191.23,191.2,9.40806611]
[1738882226112,13.93474853,191.23,191.2,9.40806611]
[1738882226513,13.93474853,191.23,191.19,0.063]
[1738882226514,0.12549,191.2,191.19,0.063]
[1738882227909,0.64849,191.2,191.19,0.063]
[1738882228217,14.06033853,191.2,191.19,0.063]
[1738882231924,13.53733853,191.2,191.19,0.063]
[1738882233230,14.06033853,191.2,191.19,0.063]
[1738882243119,15.29227146,191.2,191.19,0.063]
[1738882255337,15.29227146,191.2,191.16,0.063]
[1738882255544,13.41184853,191.17,191.16,0.063]
[1738882256543,13.93484853,191.17,191.16,0.063]
[1738882260648,14.31131853,191.17,191.16,0.063]
[1738882263849,15.81501853,191.17,191.16,0.063]
[1738882265345,52.83281853,191.17,191.16,0.0001]
[1738882265729,58.27711507,191.17,191.16,0.0001]
[1738882266137,0.37647,191.13,191.06,0.03]
[1738882266325,13.53733853,191.07,191.06,0.03]
[1738882266525,14.06063853,191.07,191.06,0.03]
[1738882266945,15.04223038,191.07,191.06,0.03]
[1738882267141,15.29321038,191.07,191.06,0.03]
[1738882270849,19.57321038,191.07,191.06,0.03]
[1738882273346,15.29321038,191.07,191.06,0.03]
[1738882273550,14.31161853,191.07,191.06,0.03]
[1738882273862,14.06063853,191.07,191.06,0.03]
[1738882274259,13.53733853,191.07,191.06,0.03]
[1738882274444,13.41184853,191.07,191.06,0.03]
[1738882274764,9.40806611,191.08,191.06,0.03]
[1738882275470,13.78831853,191.07,191.06,0.03]
[1738882276554,14.31161853,191.07,191.06,0.03]
[1738882277669,13.78831853,191.03,190.99,0.03]
[1738882277837,13.78831853,191.0,190.99,0.03]
[1738882278040,19.05038398,191.0,190.99,0.03]
[1738882278443,19.57388398,191.0,190.99,0.03]
[1738882280265,50.57388398,191.0,190.99,0.03]
[1738882281460,87.20614842,191.0,190.99,0.03]
[1738882282282,87.20614842,191.0,190.84,9.40806611]
[1738882282283,0.37647,190.92,190.84,9.40806611]
[1738882282455,13.53733853,190.84,190.79,6.6833]
[1738882282776,13.53733853,190.84,190.79,0.03]
[1738882282777,22.94540464,190.84,190.79,0.03]
[1738882283569,13.41184853,190.8,190.79,0.03]
[1738882284053,20.12549,190.81,190.79,0.03]
[1738882284254,9.40806611,190.82,190.79,0.03]
[1738882284668,13.53733853,190.81,190.79,0.03]
[1738882285173,9.40806611,190.82,190.79,0.03]
[1738882285471,33.41184853,190.8,190.79,0.03]